bitfinex/quotes_SOLUSD_20250226
["timestamp","ask_amount","ask_price","bid_price","bid_amount"]
[1740601325788,20.28432314,132.94,132.84,1.34244674]
[1740601326110,0.42648471,132.93,132.84,138.14244674]
[1740601326310,0.14216157,132.88,132.8,263.58]
[1740601326609,0.56864628,132.86,132.8,126.78]
[1740601326816,0.42648471,132.84,132.72,126.82]
[1740601326996,0.28432314,132.89,132.73,1.34521755]
[1740601327196,15.23553492,132.9,132.76,20.0]
[1740601327513,15.23553492,132.9,132.81,0.28432314]
[1740601327706,15.23553492,132.9,132.82,1.34267523]
[1740601328024,20.31404656,132.94,132.82,136.8]
[1740601328025,5.07851164,132.85,132.82,136.8]
[1740601328318,5.07851164,132.85,132.82,100.00835773]
[1740601328698,5.07851164,132.85,132.81,0.063]
[1740601328699,0.56864628,132.84,132.81,0.063]
[1740601329102,23.11500392,132.86,132.81,151.26233946]
[1740601329309,23.11500392,132.86,132.82,0.28432314]
[1740601329599,23.11500392,132.86,132.81,100.00835773]
[1740601329600,0.42648471,132.85,132.81,100.00835773]
[1740601329919,23.11500392,132.86,132.81,151.26233946]
[1740601330333,23.11500392,132.92,132.82,0.28432314]
[1740601330498,23.11500392,132.92,132.83,0.28432314]
[1740601330696,23.11500392,132.92,132.86,0.28432314]
[1740601330898,23.11500392,132.92,132.9,0.28432314]
[1740601331223,7.98811571,132.92,132.91,0.56864628]
[1740601331390,37.39538795,132.94,132.93,0.28432314]
[1740601331597,22.26849974,132.94,132.93,151.83098574]
[1740601332013,22.26849974,132.94,132.93,51.25398173]
[1740601332299,0.28432314,132.93,132.83,126.86]
[1740601332510,22.26849974,132.94,132.84,37.26293729]
[1740601332715,0.14216157,132.95,132.85,37.92898865]
[1740601332911,30.74159458,132.96,132.85,0.28432314]
[1740601333130,30.74159458,132.96,132.89,0.14216157]
[1740601333297,15.6504,133.04,132.91,0.14216157]
[1740601333495,1.56864628,133.0,132.91,151.26233946]
[1740601333741,1.56864628,133.0,132.82,278.12233946]
[1740601333742,0.56864628,132.96,132.82,278.12233946]
[1740601333899,1.56864628,132.96,132.82,278.12233946]
[1740601334231,1.97413224,133.0,132.82,278.12233946]
[1740601334232,0.42648471,132.89,132.82,51.25398173]
[1740601334404,3.59658471,132.89,132.75,100.00835773]
[1740601334604,3.1701,132.89,132.79,0.42648471]
[1740601334818,0.14216157,132.88,132.79,151.26233946]
[1740601335018,0.14216157,132.86,132.79,151.26233946]
[1740601335229,3.1701,132.89,132.79,151.26233946]
[1740601335521,0.14216157,132.88,132.79,151.26233946]
[1740601335729,0.14216157,132.87,132.79,151.26233946]
[1740601335931,3.1701,132.89,132.79,151.26233946]
[1740601336222,20.0,132.92,132.83,0.28432314]
[1740601336432,3.1701,132.97,132.83,151.5466626]
[1740601336733,2.14216157,132.9,132.83,51.25398173]
[1740601336920,0.14216157,132.94,132.83,151.26233946]
[1740601337228,0.14216157,132.94,132.74,274.91723946]
[1740601337229,0.14216157,132.85,132.74,274.91723946]
[1740601337407,2.0,132.87,132.74,274.91723946]
[1740601337408,0.14216157,132.83,132.74,274.91723946]
[1740601337823,1.0,132.94,132.81,20.0]
[1740601338129,256.14617327,133.12,132.81,20.0]
[1740601338130,14.8076,132.97,132.86,0.28432314]
[1740601338301,14.8076,132.97,132.86,148.05723946]
[1740601338504,3.1701,132.97,132.86,148.05723946]
[1740601338895,0.14216157,132.95,132.86,148.05723946]
[1740601339203,0.42648471,132.91,132.81,184.84888173]
[1740601339406,0.42648471,132.88,132.81,48.04888173]
[1740601339598,0.42648471,132.88,132.77,263.7]
[1740601339599,0.14216157,132.83,132.77,184.84888173]
[1740601339798,0.14216157,132.81,132.77,48.04888173]
[1740601340001,0.28432314,132.78,132.69,311.81188173]
[1740601340206,0.42648471,132.76,132.69,184.91188173]
[1740601340437,20.0,132.77,132.69,184.91188173]
[1740601340612,0.28432314,132.81,132.69,184.91188173]
[1740601340814,0.14216157,132.8,132.69,184.91188173]
[1740601341009,0.28432314,132.78,132.69,184.91188173]
[1740601341217,0.14216157,132.75,132.69,184.91188173]
[1740601341728,0.42648471,132.77,132.69,184.91188173]
[1740601342335,0.42648471,132.77,132.69,48.11188173]
[1740601342336,0.14216157,132.72,132.69,48.11188173]
[1740601342634,0.42648471,132.7,132.61,311.74888173]
[1740601342832,0.14216157,132.66,132.61,48.04888173]
[1740601343036,20.42648471,132.66,132.61,48.04888173]
[1740601343338,0.14216157,132.63,132.54,184.84888173]
[1740601343631,0.28432314,132.61,132.54,184.84888173]
[1740601343813,20.0,132.63,132.54,184.84888173]
[1740601344021,0.14216157,132.61,132.54,184.84888173]
[1740601344338,20.42648471,132.57,132.47,184.84888173]
[1740601344526,0.14216157,132.52,132.47,48.04888173]
[1740601344832,0.14216157,132.5,132.47,48.04888173]
[1740601345036,82.9,132.54,132.45,48.11188173]
[1740601345241,0.42648471,132.53,132.45,184.91188173]
[1740601345542,0.28432314,132.51,132.45,184.91188173]
[1740601345718,0.14216157,132.47,132.45,48.11188173]
[1740601345912,0.14216157,132.45,132.44,0.063]
[1740601346112,20.42648471,132.45,132.37,311.86888173]
[1740601346317,20.14216157,132.44,132.37,184.84888173]
[1740601346641,0.14216157,132.39,132.29,323.19416979]
[1740601346839,0.14216157,132.4,132.29,322.69416979]
[1740601347011,1.0,132.44,132.29,322.69416979]
[1740601347211,0.42648471,132.43,132.29,322.69416979]
[1740601347635,13.6905,132.45,132.29,311.86888173]
[1740601347636,20.0,132.41,132.29,311.86888173]
[1740601347938,0.14216157,132.4,132.29,311.86888173]
[1740601348121,20.42648471,132.4,132.29,311.86888173]
[1740601348306,1.56864628,132.38,132.29,184.84888173]
[1740601348507,1.56864628,132.38,132.26,0.063]
[1740601348508,0.28432314,132.35,132.26,184.91188173]
[1740601348711,0.14216157,132.34,132.26,184.91188173]
[1740601348931,0.28432314,132.41,132.26,184.91188173]
[1740601349136,20.28432314,132.41,132.26,184.91188173]
[1740601349348,20.28432314,132.41,132.29,20.0]
[1740601349520,20.28432314,132.41,132.29,204.84888173]
[1740601349853,20.0,132.41,132.29,184.84888173]
[1740601350141,1.0,132.38,132.29,48.04888173]
[1740601350323,0.28432314,132.37,132.29,48.04888173]
[1740601350650,0.28432314,132.37,132.29,184.84888173]
[1740601350815,2.98368532,132.43,132.29,184.84888173]
[1740601351138,0.28432314,132.38,132.29,184.84888173]
[1740601351320,0.28432314,132.35,132.29,184.84888173]
[1740601351518,2.98363087,132.4,132.29,48.04888173]
[1740601351722,1.0,132.42,132.29,48.04888173]
[1740601351917,211.02,132.44,132.29,184.84888173]
[1740601352144,12.6905,132.45,132.31,0.14216157]
[1740601352442,12.6905,132.45,132.34,20.0]
[1740601352623,20.0,132.48,132.34,204.84888173]
[1740601352828,0.56864628,132.44,132.34,184.84888173]
[1740601353025,1.0,132.44,132.34,184.84888173]
[1740601353238,83.9,132.49,132.34,184.84888173]
[1740601353545,1.0,132.45,132.34,184.84888173]
[1740601353847,0.56864628,132.4,132.29,312.14888173]
[1740601354050,0.56864628,132.36,132.26,184.91188173]
[1740601354232,1.56864628,132.36,132.26,48.11188173]
[1740601354555,20.56864628,132.36,132.26,48.11188173]
[1740601355654,0.42648471,132.34,132.26,0.063]
[1740601356624,0.28432314,132.32,132.26,0.063]
[1740601357250,0.28432314,132.34,132.26,136.863]
[1740601357656,0.28432314,132.32,132.26,136.863]
[1740601358021,0.28432314,132.32,132.26,0.063]
[1740601358022,0.28432314,132.3,132.26,0.063]
[1740601358225,0.28432314,132.27,132.15,184.91188173]
[1740601358427,0.28432314,132.25,132.15,184.91188173]
[1740601358642,0.28432314,132.23,132.15,0.063]
[1740601359158,0.28432314,132.2,132.15,0.063]
[1740601359362,0.42648471,132.18,132.1,136.83]
[1740601359854,3.7964191,132.31,132.14,0.14216157]
[1740601360057,3.7964191,132.31,132.15,0.28432314]
[1740601360245,15.6382,132.32,132.17,20.0]
[1740601360446,15.6382,132.32,132.18,0.42648471]
[1740601360765,17.62247741,132.32,132.17,184.84888173]
[1740601360959,15.6382,132.32,132.2,20.0]
[1740601361166,15.6382,132.32,132.2,136.8]
[1740601361627,20.0,132.29,132.2,136.8]
[1740601361833,0.56864628,132.28,132.2,184.84888173]
[1740601362069,1.56864628,132.28,132.15,264.22]
[1740601362362,21.56864628,132.28,132.15,127.42]
[1740601362547,0.14216157,132.24,132.15,127.42]
[1740601362852,20.0,132.28,132.15,312.26888173]
[1740601363056,15.6382,132.32,132.19,0.28432314]
[1740601363247,15.6382,132.32,132.19,185.13320487]
[1740601363248,3.2499,132.32,132.19,185.13320487]
[1740601363454,3.2499,132.32,132.2,0.42648471]
[1740601363636,0.14216157,132.3,132.2,136.8]
[1740601363958,3.2499,132.32,132.2,136.8]
[1740601364255,3.2499,132.32,132.21,0.28432314]
[1740601364460,20.0,132.33,132.21,185.13320487]
[1740601364641,21.0,132.36,132.21,184.84888173]
[1740601364838,1.28432314,132.34,132.21,48.04888173]
[1740601365042,1.28432314,132.32,132.21,48.04888173]
[1740601365359,0.14216157,132.3,132.19,184.84888173]
[1740601365556,0.28432314,132.3,132.19,48.04888173]
[1740601365857,1.28432314,132.27,132.15,175.46888173]
[1740601366061,0.28432314,132.25,132.15,127.42]
[1740601366237,0.14216157,132.22,132.15,127.42]
[1740601366554,0.14216157,132.22,132.15,264.22]
[1740601366737,0.14216157,132.28,132.15,264.22]
[1740601366940,0.42648471,132.26,132.15,312.26888173]
[1740601367449,0.14216157,132.25,132.15,127.42]
[1740601367754,0.56864628,132.23,132.1,184.87888173]
[1740601367957,20.0,132.21,132.1,184.87888173]
[1740601368145,20.56864628,132.21,132.1,0.03]
[1740601368339,1.56864628,132.19,132.1,0.03]
[1740601368543,0.56864628,132.19,132.1,136.83]
[1740601369067,16.1259,132.25,132.13,20.0]
[1740601369240,16.1259,132.25,132.14,0.28432314]
[1740601369447,20.0,132.22,132.14,184.84888173]
[1740601369646,0.14216157,132.21,132.14,184.84888173]
[1740601369846,20.0,132.22,132.14,184.84888173]
[1740601370050,12.56274235,132.32,132.14,184.84888173]
[1740601370247,20.0,132.29,132.14,184.84888173]
[1740601370466,0.14216157,132.27,132.15,0.56864628]
[1740601370638,12.3495,132.32,132.18,20.0]
[1740601370841,20.0,132.29,132.19,0.28432314]
[1740601371057,20.0,132.29,132.19,184.84888173]
[1740601371535,0.14216157,132.27,132.19,184.84888173]
[1740601371736,0.14216157,132.27,132.13,184.84888173]
[1740601372262,0.14216157,132.25,132.13,184.84888173]
[1740601372646,0.14216157,132.25,132.14,0.28432314]
[1740601372850,0.14216157,132.25,132.13,184.9910433]
[1740601372851,0.14216157,132.25,132.13,184.84888173]
[1740601373433,0.14216157,132.23,132.13,184.84888173]
[1740601374252,0.14216157,132.25,132.14,0.28432314]
[1740601374451,0.14216157,132.25,132.14,184.84888173]
[1740601374758,3.87348192,132.3,132.14,184.84888173]
[1740601374759,3.87348192,132.3,132.15,0.28432314]
[1740601374949,3.87348192,132.3,132.16,0.28432314]
[1740601375260,0.14216157,132.3,132.16,185.13320487]
[1740601375471,20.42648471,132.28,132.14,136.8]
[1740601375647,0.42648471,132.24,132.13,184.84888173]
[1740601375848,0.42648471,132.21,132.1,0.03]
[1740601376044,0.42648471,132.19,132.1,0.03]
[1740601376249,0.42648471,132.17,132.1,0.03]
[1740601376439,0.42648471,132.13,132.1,0.03]
[1740601376642,0.14216157,132.12,132.01,184.91188173]
[1740601378159,0.14216157,132.12,132.01,0.063]
[1740601378642,0.42648471,132.11,132.01,0.063]
[1740601379154,0.42648471,132.11,132.01,136.863]
[1740601379345,3.75305831,132.17,132.01,184.91188173]
[1740601379558,3.75305831,132.17,132.02,0.28432314]
[1740601379758,0.14216157,132.16,132.01,184.91188173]
[1740601379958,0.28432314,132.13,132.01,136.863]
[1740601380156,4.01520751,132.13,132.01,0.063]
[1740601380369,0.28432314,132.13,132.01,184.91188173]
[1740601380764,0.14216157,132.13,132.01,184.91188173]
[1740601380945,5.74009601,132.17,132.01,184.91188173]
[1740601381149,0.14216157,132.13,132.01,184.91188173]
[1740601381468,0.14216157,132.11,132.01,0.063]
[1740601381775,20.28432314,132.06,132.01,0.063]
[1740601382074,22.27312081,132.06,131.9,264.44]
[1740601382253,0.14216157,132.0,131.9,312.48888173]
[1740601382574,20.14216157,132.01,131.91,0.28432314]
[1740601382883,0.14216157,132.0,131.9,312.48888173]
[1740601383041,12.6982,132.1,131.95,1.0]
[1740601383239,3.1381,132.13,131.99,0.28432314]
[1740601383240,3.72543983,132.12,131.99,0.28432314]
[1740601383440,3.1381,132.13,132.01,0.28432314]
[1740601383675,3.1381,132.13,132.01,136.8]
[1740601383973,0.28432314,132.09,131.94,136.8]
[1740601384165,3.71820301,132.05,131.9,312.48888173]
[1740601384468,0.42648471,132.04,131.93,20.0]
[1740601384647,0.42648471,132.04,131.93,204.84888173]
[1740601384852,0.14216157,132.07,131.94,0.56864628]
[1740601385044,0.14216157,132.07,131.94,184.84888173]
[1740601385249,0.28432314,132.07,131.94,184.84888173]
[1740601385455,0.14216157,132.07,131.95,0.56864628]
[1740601385657,0.14216157,132.05,131.94,184.84888173]
[1740601385861,2.98861251,132.15,131.98,0.56864628]
[1740601386051,12.6982,132.17,132.01,20.0]
[1740601386254,12.6982,132.17,132.04,0.28432314]
[1740601386456,20.0,132.14,132.04,184.84888173]
[1740601386780,12.6982,132.17,132.05,0.28432314]
[1740601386965,12.6982,132.17,132.05,185.13320487]
[1740601387168,7.02994039,132.21,132.08,20.0]
[1740601387473,0.03,132.23,132.09,0.56864628]
[1740601388071,0.03,132.23,132.13,0.28432314]
[1740601388271,0.03,132.23,132.16,20.0]
[1740601388574,0.03,132.23,132.17,16.66432314]
[1740601388810,0.03,132.23,132.21,0.28432314]
[1740601388952,0.03,132.23,132.21,184.84888173]
[1740601389152,0.03,132.23,132.17,153.18]
[1740601389353,0.03,132.23,132.17,201.22888173]
[1740601389572,0.03,132.23,132.21,0.28432314]
[1740601389781,0.03,132.23,132.22,0.56864628]
[1740601390077,3.1774,132.44,132.3,0.28432314]
[1740601390290,3.1774,132.44,132.32,0.28432314]
[1740601390578,0.03,132.52,132.36,0.56864628]
[1740601390753,0.03,132.52,132.36,185.27536644]
[1740601390949,0.03,132.52,132.36,185.13320487]
[1740601391149,0.03,132.52,132.4,0.28432314]
[1740601391382,0.03,132.52,132.41,16.28]
[1740601391574,0.03,132.52,132.41,54.11081432]
[1740601391774,0.03,132.52,132.42,37.22281717]
[1740601392183,82.9,132.51,132.37,37.66970549]
[1740601392387,12.8306,132.47,132.37,37.66970549]
[1740601392601,2.53911388,132.46,132.36,39.34491648]
[1740601392799,2.53911388,132.46,132.36,1.9016714]
[1740601393002,0.56864628,132.43,132.36,1.9016714]
[1740601393205,0.56864628,132.41,132.3,37.16175164]
[1740601393506,0.56864628,132.41,132.3,173.96175164]
[1740601393670,0.56864628,132.39,132.29,53.44036185]
[1740601393874,0.56864628,132.39,132.29,16.26]
[1740601394477,0.56864628,132.37,132.25,188.04787435]
[1740601394697,0.56864628,132.37,132.26,1.58738867]
[1740601394698,20.28432314,132.37,132.26,1.58738867]
[1740601394881,20.0,132.37,132.28,20.0]
[1740601395086,0.14216157,132.44,132.29,1.87062756]
[1740601395297,0.42648471,132.41,132.27,136.8]
[1740601395500,0.42648471,132.41,132.27,138.38662182]
[1740601395699,1.9704676,132.4,132.27,136.8]
[1740601395887,0.28432314,132.41,132.27,138.38699906]
[1740601396277,20.0,132.38,132.27,186.43588079]
[1740601396479,80.49118882,132.44,132.3,20.0]
[1740601396680,0.21324235,132.49,132.34,0.28432314]
[1740601396904,78.52072122,132.5,132.35,1.86999573]
[1740601397080,78.52072122,132.5,132.36,1.72759002]
[1740601397612,11.54398831,132.41,132.36,170.0707436]
[1740601397903,11.54398831,132.41,132.37,1.40666257]
[1740601398290,11.54398831,132.41,132.37,171.47740617]
[1740601398490,11.54398831,132.41,132.39,1.0]
[1740601398804,11.54398831,132.5,132.4,0.40572233]
[1740601399000,11.54398831,132.5,132.41,18.04]
[1740601399202,11.54398831,132.5,132.42,0.40480077]
[1740601399501,11.54398831,132.5,132.43,1.0]
[1740601399693,11.54398831,132.5,132.47,0.14216157]
[1740601399895,11.54398831,132.5,132.48,0.40425922]
[1740601400124,11.54398831,132.5,132.49,16.24432314]
[1740601400592,11.54398831,132.5,132.49,138.385726]
[1740601400803,11.54398831,132.5,132.49,186.71893087]
[1740601400996,11.54398831,132.5,132.49,186.0307436]
[1740601401198,11.54398831,132.5,132.49,15.96]
[1740601401430,0.03,132.52,132.49,15.96]
[1740601401431,0.14216157,132.51,132.49,15.96]
[1740601401621,0.42648471,132.51,132.44,0.3260156]
[1740601401798,0.42648471,132.49,132.44,0.3260156]
[1740601402121,2.40844074,132.49,132.44,0.3260156]
[1740601402314,0.42648471,132.49,132.44,0.3260156]
[1740601403117,98.55072122,132.5,132.37,175.46888173]
[1740601403118,0.14216157,132.43,132.37,175.46888173]
[1740601403317,0.14216157,132.4,132.34,15.82]
[1740601403841,0.14216157,132.38,132.34,15.82]
[1740601404022,0.14216157,132.4,132.34,15.82]
[1740601404195,78.52072122,132.49,132.35,0.40953744]
[1740601404393,79.0893675,132.48,132.34,15.82]
[1740601404590,20.56864628,132.44,132.33,0.9528236]
[1740601404795,0.56864628,132.39,132.33,0.9528236]
[1740601405014,20.56864628,132.39,132.33,0.9528236]
[1740601405196,20.0,132.39,132.33,0.9528236]
[1740601405396,0.56864628,132.44,132.33,0.9528236]
[1740601405621,0.56864628,132.44,132.33,205.37468547]
[1740601405832,0.56864628,132.39,132.33,0.9528236]
[1740601406115,20.56864628,132.39,132.33,0.9528236]
[1740601406324,0.56864628,132.37,132.33,0.9528236]
[1740601406526,0.56864628,132.35,132.24,15.72]
[1740601406720,0.56864628,132.32,132.24,15.72]
[1740601406901,20.56864628,132.32,132.22,0.9528236]
[1740601407300,102.96527198,132.32,132.22,0.9528236]
[1740601407497,0.28432314,132.32,132.23,0.41338296]
[1740601407697,0.14216157,132.37,132.23,204.83524483]
[1740601407916,0.14216157,132.34,132.23,204.42186187]
[1740601408106,0.42648471,132.32,132.22,0.9528236]
[1740601408299,0.42648471,132.3,132.22,0.9528236]
[1740601408701,0.28432314,132.3,132.22,0.9528236]
[1740601408926,12.249,132.38,132.23,0.55423899]
[1740601409116,12.249,132.38,132.26,20.0]
[1740601409321,12.249,132.38,132.27,15.62]
[1740601409520,20.0,132.35,132.27,14.55190952]
[1740601409830,14.23291395,132.38,132.27,14.55190952]
[1740601409831,0.42648471,132.33,132.27,14.55190952]
[1740601410032,0.14216157,132.32,132.27,14.55190952]
[1740601410402,0.14216157,132.33,132.27,14.55190952]
[1740601410613,78.52072122,132.4,132.27,14.55190952]
[1740601410798,20.0,132.4,132.27,218.97377139]
[1740601410997,3.70861201,132.41,132.28,0.41131431]
[1740601411221,3.70861201,132.41,132.28,122.02186187]
[1740601411430,11.54398831,132.43,132.32,0.42648471]
[1740601411639,11.54398831,132.43,132.32,204.83042131]
[1740601411841,11.54398831,132.43,132.33,0.40867199]
[1740601412003,11.54398831,132.43,132.37,20.56864628]
[1740601412206,11.54398831,132.43,132.39,0.42648471]
[1740601412405,11.54398831,132.46,132.4,0.40617499]
[1740601412623,11.54398831,132.46,132.4,82.4]
[1740601412830,11.54398831,132.46,132.4,204.82958385]
[1740601413029,11.54398831,132.46,132.41,0.56864628]
[1740601413204,11.54398831,132.46,132.42,0.40620586]
[1740601413404,11.54398831,132.46,132.41,0.40637555]
[1740601413713,11.54398831,132.46,132.4,82.4]
[1740601414035,0.03,132.43,132.42,20.56864628]
[1740601414218,0.03,132.43,132.42,224.42186187]
[1740601414726,0.03,132.43,132.42,82.4]
[1740601414931,0.03,132.43,132.38,219.98186187]
[1740601415109,0.03,132.43,132.38,82.4]
[1740601415308,0.14216157,132.42,132.37,15.46]
[1740601415510,20.03,132.43,132.37,97.86]
[1740601415804,0.03,132.43,132.37,97.86]
[1740601416202,0.03,132.43,132.38,0.4082847]
[1740601416402,0.03,132.43,132.42,0.42648471]
[1740601416607,0.03,132.5,132.45,20.0]
[1740601416810,0.03,132.5,132.49,20.0]
[1740601417026,0.03,132.5,132.49,224.42186187]
[1740601417225,0.03,132.5,132.49,224.99050815]
[1740601417435,0.03,132.52,132.5,0.56864628]
[1740601417616,11.57398831,132.57,132.53,20.0]
[1740601417934,11.57398831,132.57,132.56,20.0]
[1740601418117,11.57398831,132.57,132.56,225.3920566]
[1740601418324,11.57398831,132.57,132.56,224.99050815]
[1740601418617,8.24738831,132.57,132.56,224.99050815]
[1740601418816,8.24738831,132.57,132.56,224.70618501]
[1740601419227,8.24738831,132.57,132.56,224.42186187]
[1740601419532,8.24738831,132.57,132.54,15.38]
[1740601419732,0.14216157,132.56,132.54,15.38]
[1740601420042,0.9528236,132.59,132.5,0.4048945]
[1740601420212,0.9528236,132.59,132.53,20.0]
[1740601420734,0.9528236,132.59,132.54,0.68722607]
[1740601421027,0.9528236,132.59,132.58,20.28432314]
[1740601421217,0.9528236,132.59,132.58,241.77131555]
[1740601421420,0.03,132.64,132.62,0.28432314]
[1740601421731,0.03,132.64,132.6,0.399972]
[1740601422107,0.03,132.64,132.59,0.40110848]
[1740601422312,0.45648471,132.64,132.58,82.4]
[1740601422610,0.14216157,132.63,132.57,15.34]
[1740601422812,0.45648471,132.64,132.57,15.34]
[1740601423010,0.56864628,132.63,132.57,15.34]
[1740601423210,0.42648471,132.6,132.57,15.34]
[1740601423911,20.14216157,132.59,132.51,15.28]
[1740601424134,78.94720593,132.6,132.51,15.28]
[1740601424330,20.0,132.57,132.51,15.28]
[1740601424709,0.42648471,132.54,132.48,0.40435234]
[1740601424915,0.42648471,132.5,132.42,82.4]
[1740601425211,20.0,132.51,132.42,220.08801941]
[1740601425428,20.0,132.51,132.42,219.68186187]
[1740601425833,20.56864628,132.5,132.38,331.68186187]
[1740601426035,0.56864628,132.47,132.41,15.22]
[1740601426355,20.56864628,132.47,132.41,15.22]
[1740601426538,20.56864628,132.47,132.35,15.2]
[1740601426742,0.56864628,132.42,132.33,0.9528236]
[1740601427440,10.2327743,132.47,132.33,0.9528236]
[1740601427611,0.14216157,132.46,132.34,0.40925082]
[1740601427818,0.42648471,132.44,132.34,0.40925082]
[1740601428046,0.42648471,132.42,132.33,0.9528236]
[1740601428229,0.14216157,132.41,132.33,0.9528236]
[1740601428741,0.14216157,132.39,132.33,0.9528236]
[1740601428956,0.42648471,132.38,132.33,0.9528236]
[1740601429235,0.56864628,132.36,132.33,0.9528236]
[1740601430730,0.56864628,132.36,132.27,15.223]
[1740601430926,21.56864628,132.36,132.27,0.063]
[1740601431139,20.56864628,132.36,132.27,0.063]
[1740601431543,0.56864628,132.31,132.27,0.063]
[1740601432144,20.56864628,132.31,132.27,0.063]
[1740601433241,0.56864628,132.29,132.22,0.9528236]
[1740601433922,0.42648471,132.29,132.22,0.9528236]
[1740601434244,78.52072122,132.37,132.23,0.69775261]
[1740601434438,3.81223549,132.37,132.23,82.4]
[1740601434749,20.0,132.35,132.23,209.82]
[1740601434914,78.52072122,132.4,132.26,20.0]
[1740601435119,3.72674232,132.39,132.26,122.02186187]
[1740601435314,82.3443558,132.4,132.27,0.41121676]
[1740601435534,0.14216157,132.31,132.22,0.9528236]
[1740601436730,0.56864628,132.29,132.22,0.9528236]
[1740601436929,0.56864628,132.27,132.22,0.9528236]
[1740601437442,0.56864628,132.24,132.22,0.9528236]
[1740601437650,20.0,132.25,132.22,0.9528236]
[1740601438028,0.28432314,132.23,132.22,0.9528236]
[1740601438238,20.0,132.25,132.22,1.0158236]
[1740601438432,1.0,132.36,132.22,1.0158236]
[1740601438746,78.52072122,132.35,132.23,15.04]
[1740601439248,88.75349552,132.38,132.24,0.83901363]
[1740601439554,3.79306391,132.39,132.23,219.46186187]
[1740601439849,2.55255538,132.38,132.23,219.46186187]
[1740601440052,82.31378513,132.39,132.24,0.41204612]
[1740601440344,0.56864628,132.38,132.24,0.41204612]
[1740601440529,82.31378513,132.39,132.24,0.83811729]
[1740601440734,20.0,132.36,132.24,250.64997916]
[1740601440936,21.9836269,132.35,132.24,82.4]
[1740601441246,0.56864628,132.3,132.23,142.5]
[1740601441450,0.42648471,132.3,132.23,142.5]
[1740601441620,0.14216157,132.29,132.23,142.5]
[1740601441949,0.14216157,132.27,132.22,1.0158236]
[1740601442155,0.14216157,132.25,132.22,1.0158236]
[1740601442656,0.28432314,132.26,132.22,1.0158236]
[1740601443026,20.56864628,132.23,132.22,1.0158236]
[1740601443229,0.56864628,132.23,132.22,1.0158236]
[1740601443431,11.2327743,132.31,132.22,1.0158236]
[1740601443432,82.9,132.27,132.22,1.0158236]
[1740601443630,82.9,132.33,132.22,1.0158236]
[1740601443935,1.0,132.37,132.22,83.82847988]
[1740601443936,82.9,132.36,132.22,83.82847988]
[1740601444138,82.9,132.37,132.25,20.0]
[1740601444338,82.9,132.39,132.26,0.41152728]
[1740601444547,82.9,132.42,132.29,20.0]
[1740601444730,82.9,132.45,132.31,0.42648471]
[1740601444926,22.92001564,132.46,132.27,1.42648471]
[1740601444927,1.0,132.42,132.27,122.02186187]
[1740601445153,0.14216157,132.4,132.26,20.0]
[1740601445352,20.0,132.38,132.24,0.4114882]
[1740601445552,20.0,132.34,132.23,127.5]
[1740601445756,1.42648471,132.32,132.22,1.0158236]
[1740601445962,0.42648471,132.3,132.22,1.0158236]
[1740601446127,0.42648471,132.25,132.22,1.0158236]
[1740601446466,10.2327743,132.3,132.22,1.0158236]
[1740601446630,82.9,132.39,132.24,0.56864628]
[1740601446832,3.8264715,132.39,132.25,0.4112486]
[1740601447032,20.0,132.37,132.27,20.0]
[1740601447228,85.8677,132.42,132.28,0.98014439]
[1740601447459,106.03325799,132.44,132.31,20.0]
[1740601447647,22.92001564,132.44,132.31,239.89141488]
[1740601447845,20.0,132.41,132.31,239.48186187]
[1740601448058,22.92001564,132.44,132.32,0.4095367]
[1740601448264,20.0,132.41,132.32,204.42186187]
[1740601448555,82.9,132.43,132.31,15.06]
[1740601448759,82.9,132.43,132.32,0.40882612]
[1740601448961,22.92001564,132.44,132.32,204.99050815]
[1740601449157,22.92001564,132.44,132.38,0.14216157]
[1740601449456,22.92001564,132.44,132.39,0.56864628]
[1740601449632,22.92001564,132.44,132.43,0.56864628]
[1740601449840,3.61071564,132.44,132.43,204.99050815]
[1740601450033,10.25813678,132.47,132.43,204.99050815]
[1740601450034,10.25813678,132.47,132.46,21.56864628]
[1740601450240,10.25813678,132.47,132.46,224.99050815]
[1740601450443,10.25813678,132.47,132.46,225.99050815]
[1740601450643,46.17595325,132.58,132.47,0.56864628]
[1740601450845,46.17595325,132.58,132.51,20.14216157]
[1740601451045,46.17595325,132.58,132.51,142.16402344]
[1740601451356,0.03,132.54,132.5,122.02186187]
[1740601451861,0.03,132.54,132.51,0.54659992]